Cogmind - Beta 14 @@@ ROGUE MODE // 2024.08.20 @ 15:00:35 Player: Compilatron Result: Destroyed by G-47 Trooper with Particle Gun Performance ------------- Evolutions (0) 0 Regions Visited (1) 200 Robots Destroyed (12) 60 Value Destroyed (286) 286 Prototype IDs (0) 0 Alien Tech Used (0) 0 Bonus (0) 0 TOTAL SCORE: 546 Bonus ------- None Cogmind --------- Core Integrity 0/250 Matter 280/300 Energy 265/265 System Corruption 0% Temperature Cool (16) Movement Treading (160) Location -10/Materials Parts ------- > --- POWER (1) -------- Improved Ion Engine > --- PROPULSION (2) --- Light Treads Light Treads > --- UTILITY (2) ------ Large Storage Unit > --- WEAPON (2) ------- Light Assault Rifle > --- INVENTORY (15) --- Improved Ion Engine Improved Ion Engine Compact Wheel High-capacity Matter Pod (90) Medium Laser Medium Laser Grenade Launcher Peak State ------------ > --- POWER ------------ Improved Ion Engine > --- PROPULSION ------- Aluminum Leg Aluminum Leg > --- UTILITY ---------- Small Storage Unit Shield Generator > --- WEAPON ----------- Medium Laser Light Assault Rifle > --- INVENTORY -------- Improved Ion Engine Improved Ion Engine Light Treads Light Treads Compact Wheel Compact Wheel Medium Laser Grenade Launcher [Rating: 10] Favorites ----------- Power Improved Ion Engine Engine Improved Ion Engine Propulsion Aluminum Leg Treads Light Treads Leg Aluminum Leg Utility Shield Generator Device Shield Generator Storage Small Storage Unit Weapon Light Assault Rifle Energy Gun Medium Laser Ballistic Gun Light Assault Rifle Build | -11 -10 ------- Run | Yrd Mat Slots Evolved . | . . Power . | . . Propulsion . | . . Utility . | . . Weapon . | . . Parts Attached 7 | 1 6 Power 1 | . 1 Engine 1 | . 1 Core . | . . Reactor . | . . Propulsion 2 | . 2 Treads 2 | . 2 Leg . | . . Wheel . | . . Hover . | . . Flight . | . . Utility 2 | . 2 Device 1 | . 1 Storage 1 | . 1 Processor . | . . Hackware . | . . Protection . | . . Artifact . | . . Weapon 2 | 1 1 Energy Gun . | . . Energy Cannon . | . . Ballistic Gun 2 | 1 1 Ballistic Cannon . | . . Launcher . | . . Special Weapon . | . . Impact Weapon . | . . Slashing Weapon . | . . Piercing Weapon . | . . Special Melee Weapon . | . . Unidentified Prototypes . | . . Parts Lost 4 | . 4 Power . | . . Propulsion 2 | . 2 Utility 1 | . 1 Weapon 1 | . 1 Highest Loss Streak 4 | . 4 To Critical Strikes . | . . Average Slot Usage (%) 96 | . 96 Engine 14 | . 14 Treads 1 | . 1 Leg 26 | . 26 Device 11 | . 11 Storage 14 | . 14 Energy Gun 13 | . 13 Ballistic Gun 14 | . 14 Peak Build Rating 10 | 6 10 Average Rating 9 | 6 9 On Entrance 6 | 6 6 Naked Turns . | . . Heaviest Build 32 | 13 32 Greatest Support 40 | 20 40 Greatest Overweight (x) 2 | . 2 Average Overweight (x) . | . . Largest Inventory Capacity 15 | 8 15 Average Capacity 9 | 8 9 Most Carried 8 | 6 8 Average Carried 7 | 6 7 Final Capacity 15 | 8 15 Final Carried 7 | 6 7 Class Distribution -------------------- 100% | Mutant Dominant Class ---------------- Mutant | -10/Materials Resources | -11 -10 ----------- Run | Yrd Mat Matter Collected 384 | 197 187 Remotely . | . . Salvage Created 369 | . 369 Parts 19 | . 19 Haulers Intercepted . | . . Recyclers Shooed . | . . Parts Field Recycled . | . . Retrieved Matter . | . . Parts Self-Destructed . | . . Prevented . | . . Kills | -11 -10 ------- Run | Yrd Mat Combat Hostiles Destroyed 9 | . 9 Guns 9 | . 9 Classes Destroyed 5 | . 5 Tunneler 1 | . 1 Operator 1 | . 1 Watcher 1 | . 1 Swarmer 3 | . 3 Grunt 6 | . 6 Best Kill Streak 3 | . 3 Combat Bots Only 3 | . 3 Max Kills in Single Turn 1 | . 1 Gunslinging . | . . Exploded . | . . Melee . | . . Uniques/NPCs Destroyed . | . . Combat | -11 -10 -------- Run | Yrd Mat Hostile Shots Fired 96 | . 96 Missed 19 | . 19 Damage Taken 775 | . 775 Core 264 | . 264 Absorbed by Shields 79 | . 79 Core Remaining (%) 100 | 100 . Volleys Fired 63 | . 63 Largest 2 | . 2 Hottest 70 | . 70 Shots Fired 107 | . 107 Gun 107 | . 107 Cannon . | . . Launcher . | . . Special . | . . Kinetic 64 | . 64 Thermal 43 | . 43 Explosive . | . . Electromagnetic . | . . Robot Hit Streak 11 | . 11 Robot Miss Streak 4 | . 4 Penetration Max . | . . Secondary Targets . | . . Shots Hit Robots 62 | . 62 Core Hits 26 | . 26 Critical Kills 1 | . 1 Critical Parts Destroyed 1 | . 1 Critical Strikes 4 | . 4 Burn 2 | . 2 Destroy 2 | . 2 Melee Attacks . | . . Impact . | . . Slashing . | . . Piercing . | . . Sneak Attacks . | . . Combat Hostiles . | . . Follow-up Attacks . | . . Damage Inflicted 624 | . 624 Guns 624 | . 624 Cannons . | . . Explosions . | . . Melee . | . . Ramming . | . . Kinetic 321 | . 321 Thermal 303 | . 303 Explosive . | . . Electromagnetic . | . . Impact . | . . Slashing . | . . Piercing . | . . Highest Corruption . | . . Average Corruption . | . . Corruption Purged . | . . Corruption Blocked . | . . Overload Shots . | . . Overflow Damage . | . . Projectiles . | . . Explosions . | . . Melee . | . . Knockbacks . | . . Impact . | . . Kinetic . | . . Secondary . | . . Self-Inflicted Damage . | . . Shots . | . . Rammed . | . . Targets Rammed . | . . Kicked . | . . Crushed . | . . Highest Temperature 285 | . 285 Average Temperature 79 | . 79 Received Heat Transfer 353 | . 353 Effects 4 | . 4 Interference 4 | . 4 Siege Activations . | . . Robots Corrupted . | . . Combat Hostiles . | . . Parts Fried . | . . Impact Corruptions . | . . Robots Melted . | . . Combat Hostiles . | . . Parts Melted 1 | . 1 Heat Transferred 1036 | . 1036 Parts Sabotaged . | . . Parts Stolen . | . . Parts Stripped . | . . Power Chain Reactions . | . . Alert | -11 -10 ------- Run | Yrd Mat Peak Influence 235 | . 235 Initial . | . . Average 73 | . 73 Maximum Alert Level 1 | . 1 Low Security (%) 95 | 100 95 Level 1 4 | . 4 Level 2 . | . . Level 3 . | . . Level 4 . | . . Level 5 . | . . High Security . | . . Max Security . | . . Squads Dispatched 1 | . 1 Investigation . | . . Extermination . | . . Reinforcement 1 | . 1 Assault . | . . Garrison . | . . Intercept . | . . Searches Triggered . | . . Construction Impeded . | . . Haulers Reinforced . | . . Active Scanning Responses . | . . Cargo Convoy Interrupts . | . . Stealth | -11 -10 --------- Run | Yrd Mat Distress Signals 2 | . 2 Communications Jammed . | . . Distress Signals . | . . Times Spotted 21 | . 21 Peak Tracking Total 6 | . 6 Tactical Retreats 2 | . 2 Traps | -11 -10 ------- Run | Yrd Mat Traps Triggered . | . . Indirectly . | . . Trap Hack Attempts . | . . Triggered . | . . Disarmed . | . . Reprogrammed . | . . Reused . | . . Traps Extracted . | . . Installed . | . . Triggered . | . . Machines | -11 -10 ---------- Run | Yrd Mat Machines Disabled . | . . Max in Single Turn . | . . Machines Repaired . | . . Machines Dismantled . | . . Machines Sabotaged . | . . Overloaded Fab Kills . | . . Hacking | -11 -10 --------- Run | Yrd Mat Machines Accessed 2 | . 2 Terminals 2 | . 2 Fabricators . | . . Repair Stations . | . . Recycling Units . | . . Scanalyzers . | . . Garrison Access . | . . Total Hacks 5 | . 5 Successful . | . . Failed 5 | . 5 Catastrophic 2 | . 2 Database Lockouts . | . . Manual 3 | . 3 Terminals 5 | . 5 Fabricators . | . . Repair Stations . | . . Recycling Units . | . . Scanalyzers . | . . Garrison Access . | . . Terminal Hacks . | . . Fabricator Hacks . | . . Repair Station Hacks . | . . Recycling Unit Hacks . | . . Scanalyzer . | . . Garrison Access Hacks . | . . Unauthorized Hacks . | . . Terminals . | . . Fabricators . | . . Repair Stations . | . . Recycling Units . | . . Scanalyzers . | . . Garrison Access . | . . Data Cores Recovered . | . . Used . | . . Hacking Detections 2 | . 2 Full Trace Events . | . . Feedback Events . | . . Feedback Blocked . | . . Robot Schematics Acquired . | . . Robots Built . | . . Authchips . | . . Time . | . . Total Robot Build Rating . | . . Part Schematics Acquired . | . . Parts Built . | . . Authchips . | . . Time . | . . Total Part Build Rating . | . . Parts Repaired . | . . Time . | . . Parts Recycled . | . . Recycled Matter . | . . Retrieved Matter . | . . Retrieved Components . | . . Parts Scanalyzed . | . . Part Schematics Acquired . | . . Parts Damaged . | . . Bothacking | -11 -10 ------------ Run | Yrd Mat Used RIF Installer . | . . Robots Hacked . | . . Non-combat . | . . Combat . | . . Robot Hacks Applied . | . . Relay Couplers Released . | . . Fabnet Peak Effective % . | . . Robots Rewired . | . . Allies Hacked . | . . Hacks Repelled . | . . Allies | -11 -10 -------- Run | Yrd Mat Total Allies . | . . Largest Group . | . . Highest-Rated Group . | . . Highest-Rated Ally . | . . Total Orders . | . . Ally Attacks . | . . Total Damage . | . . Kills . | . . Allies Corrupted . | . . Allies Melted . | . . Intel | -11 -10 ------- Run | Yrd Mat Robot Analysis Total . | . . Derelict Logs Recovered . | . . Drone Launches . | . . Drone Recoveries . | . . Exploration | -11 -10 ------------- Run | Yrd Mat Turns Passed 750 | 2 748 Spaces Moved 369 | 1 368 Core . | . . Treads 4 | . 4 Legs 365 | 1 364 Wheels . | . . Hover . | . . Flight . | . . Fastest Speed 120 | 120 120 Average Speed 125 | 120 125 Slowest Speed 260 | 120 260 Overloaded Moves . | . . Propulsion Burnouts . | . . Robots Hopped . | . . Cave-ins Triggered . | . . Exploration Rate (%) 29 | 2 57 Regions Visited 1 Branch Regions . Pre-discovered Areas . | . . Known Exits Taken . | . . Unknown Exits Taken 1 | 1 . Scrap Searched . | . . Spaces Dug . | . . Terrain Destroyed . | . . Melee . | . . Projectile . | . . AOE . | . . Terrain Rammed . | . . Walls Destroyed . | . . Machines Disabled . | . . Actions | -11 -10 --------- Run | Yrd Mat Total 564 | 1 563 Wait 117 | . 117 Move 368 | . 368 Hop . | . . Pick Up 5 | . 5 Fast Attach 1 | . 1 Attach 2 | . 2 Detach . | . . Swap 4 | 1 3 Drop 4 | . 4 Fire 63 | . 63 Melee . | . . Ram . | . . Kick . | . . Crush . | . . Escape Stasis . | . . Rewire . | . . Trap . | . . Miscellaneous . | . . Route ------- -11/Scrapyard -10/Materials (discovered 2 exits: [*Mat] / [*Min]) History --------- Turn | Location | Event 3 | -11/Scrapyard | Discovered new exit (range 0) 3 | -11/Scrapyard | Entered Materials 316 | -10/Materials | Build established: Mutant 322 | -10/Materials | Discovered new exit (range 7) 379 | -10/Materials | Discovered new exit (range 10) 711 | -10/Materials | Core integrity fell below 50% 742 | -10/Materials | Core integrity fell below 20% 751 | -10/Materials | Destroyed by G-47 Trooper with Particle Gun Last Messages --------------- 00687_ Acquired 57 matter. 00691_ K-01 Serf collects debris. 00694_ Overheating: System interference. 00694_ Med. Laser temporarily disabled. 00694_ Lgt. Assault Rifle temporarily disabled. 00694_ Aluminum Leg destroyed. 00694_ K-01 Serf collects debris. 00701_ W-16 Scout sends out distress signal. 00703_ K-01 Serf collects debris. 00707_ G-34 Mercenary destroyed. 00707_ K-01 Serf collects debris. 00715_ Aluminum Leg destroyed. 00719_ S-10 Pest destroyed. 00722_ K-01 Serf collects debris. 00726_ Acquired 20 matter. 00729_ K-01 Serf collects debris. 00729_ Acquired Lgt. Assault Rifle. 00733_ Critical hit (Burn: +37). 00733_ K-01 Serf collects debris. 00736_ Lgt. Assault Rifle destroyed. Map ----- +----------------------------------------------------+ | ??????# #???????????# | | ??????# #???????????# #######+#### | | ??????# #???????????# ???# | | ??????## ##???????????# ???# """ | | ???????# #????????????+ ???# """ | | ???????# #????????????# ???# """ | | ???????# #????????????# ???# | | ???????# #????????????# ???# """ | | ???????# #????????????# ???# """ | | ???????# #????????????# ????# """ | | ????#### #????????????# ????# ? | | ???##! #????????????# ????#######?? | | ???#! #?????????????? ????????????? | | ???#! #??????#####????????????????? | | ???#! ###### #????????????????? | | ???#! #????????????????? | | ???##! #????????????????? | | ????#### #????????????????? | | ???????###%#### #????????????????? | | ?????????#!#???? ##????????????????? | | ?????????# #????? #?????????????????? | | ?????????#[#???????#?????????????????? | | ?????????#%#?????????????????????????? | | ?????#####+#####?????????????????????? | | ?????# ==[g* #?????????????????????? | | ?????# [= @ #?????????????????????? | | ?????# #?????????????????????? | | ?????# g ???????????????? | | ?????# # ????????????? | | ?????# # #####?????????????? | | ?????# #? #?????????????????? | | ?????# #?? #?????????????????? | | ?????####+######???#?????????????????? | | ????????# ???????????????????????????? | | ????????# ???????????????????????????? | | ????????? ???????????????????????????? | | ????????? ???????????????????????????? | | ????????? ???????????????????????????? | | ?????????????????????????????????????? | | ?????????????????????????????????????? | | ?????????????????????????????????????? | | ?????????????????????????????????????? | | ?????????????????????????????????????? | | ?????????????????????????????????????? | | ?????????????????????????????????????? | | ?????????????????????????????????????? | | ?????????????????????????????????????? | | ?????????????????????????????????????? | | ?????????????????????????????????????? | | ?????????????????????????????????????? | +----------------------------------------------------+ Best States ------------- Heat Dissipation 25 Energy Generation 12 Energy Capacity 265 Matter Stores 300 Matter Capacity 300 Sight Range 16 Terrain Scan Density 10 Evasion (%) 55 Recoil Reduction 2 Item Schematics ----------------- None Robot Schematics ------------------ None Fabricated ------------ Nothing Alien Tech Used ----------------- None Achievements -------------- None Challenges ------------ None Game ------ Seed TachyonIntegrityMediator Manual? 0 Play Time 00:09:14 Cumulative 51.4 hours Start 2024.08.20 @ 14:55:46 End 2024.08.20 @ 15:00:35 Sessions 1 Manual Loads 0 Difficulty Rogue Special Mode None Game No. 73 Rogue 51 Adventurer 20 Explorer 2 Win Type - Total 0 Types 0/0/0/0/0/0/0/0/0 Lore% 38 Gallery% 37 Achievement% 37 Wizard Run 0 Options --------- Layout 1 ASCII 0 Keyboard 0 Movement Numpad Keybinds 0 Fullscreen 2 Font 24/Smallcaps Map View 50x35 Zoom Use 0% Tactical HUD 1 Map Filters NONE Filters NONE Steam 1 RUN: e7e8c04e-e6d7-41d0-b09c-1bb19594c565